{"text_format":"2","workbook":"xlsx","n_sheets":1,"sheets":["Munka1"],"not_rendered":{"charts":0,"images":0,"macros":0,"external_links":0,"defined_names":0,"comments":0,"pivot_tables":0},"unopened":[],"bounds":{"document_bytes":16777216,"sheet_cells":100000,"run_cost":"one","rows_first":2000,"rows_last":500,"rows_between":2000,"halvings":0,"cell_chars":16384,"cell_head_chars":4096},"cells_cut":0,"cells_raw":0,"read":"whole","date_system":"1900"}

{"sheet":"Munka1","index":0,"n_rows":45,"n_cols":72,"rows_kept":45,"cut":false,"hidden":false,"merged":[]}
[null,"Mérnöki Kar Dékáni Hivatal",null,"Mérnöki Kar Kollégium",null,"Herman Ottó Kollégium \"A\" épület",null,"Herman Ottó Kollégium \"B\" épület",null,"Béke utcai Kollégium (ETSZK)",null,"Eötvös Loránd Kollégium",null,"JGYPK Gyakorló Általános Iskola",null,"Kísérleti Fizikai Tanszék",null,"Optikai és Kvantumelektronikai Tanszék",null,"Elméleti Fizikai Tanszék",null,"Ásványtani, Geokémiai és Kőzettani Tanszék",null,"Kémiai Intézet",null,"Alkalmazott és Környezeti Kémiai Tanszék",null,"Szerves Kémiai Tanszék",null,"Szervetlen és Analitikai Kémiai Tanszék",null,"Fizikai Kémiai és Anyagtudományi Tanszék",null,"Bolyai Intézet",null,"Informatikai Intézet",null,"Madzsar József Kollégium",null,"Öthalmi Diáklakások",null,"Károlyi Mihály Kollégium",null,"ETSZK",null,"Móra Ferenc Szakkollégium",null,"ÁOK Apáthy István Kollégium",null,"Teleki Blanka Kollégium",null,"Vendégház, Liliom utca",null,"ÁOK id. Jancsó Miklós Kollégium",null,"Semmelweis Ignác Kollégium",null,"GYTK Dékáni Hivatal",null,"Farmakognóziai Intézet",null,"Gyógyszeranalitikai Intézet",null,"Gyógyszerhatástani és Biofarmáciai Intézet",null,"GYTK Gyógyszerkémiai Intézet",null,"Gyógyszertechnológiai és Gyógyszerfelügyeleti Intézet",null,"Klinikai Gyógyszerészeti Intézet",null,"Mindösszesen darabszám"]
["Szállítási cím","6724 Szeged, Mars tér 7./6724 Szeged, Moszkvai krt. 5-7.",null,"6728 Szeged, Kollégiumi út 20.",null,"6726 Szeged, Temesvári krt. 50-52.",null,"6726 Szeged, Fürj utca 51.",null,"6722 Szeged, Béke utca 11-13.",null,"6725 Szeged, Tisza Lajos krt. 103.",null,"6725 Szeged, Boldogasszony sgt. 8. - Konyha",null,"6720 Szeged, Dóm tér 9.",null,"6720 Szeged, Dóm tér 9.",null,"6720 Szeged, Tisza Lajos krt. 84-86.",null,"6722 Szeged, Egyetem utca 2.",null,"6720 Szeged, Rerrich Béla tér 1.",null,"6720 Szeged, Rerrich Béla tér 1.",null,"6720 Szeged, Dóm tér 8.",null,"6720 Szeged, Dóm tér 7.",null,"6720 Szeged, Rerrich Béla tér 1.",null,"6720 Szeged, Aradi vértanúk tere 1.",null,"6720 Szeged, Árpád tér 2.",null,"6726 Szeged, Bal fasor 39-45.",null,"6728 Szeged, Budapesti út 7.",null,"6724 Szeged, Kossuth Lajos sgt. 74.",null,"6726 Szeged, Temesvári krt. 31.",null,"6726 Szeged, Közép fasor 31-33.",null,"6720 Szeged, Apáthy utca 4.",null,"6725 Szeged, Semmelweis utca 5.",null,"6725 Szeged, Semmelweis utca 7.",null,"6725 Szeged, Semmelweis utca 7.",null,"6725 Szeged, Semmelweis utca 4.",null,"6720 Szeged, Zrínyi utca 9.",null,"6720 Szeged, Eötvös utca 6.",null,"6720 Szeged, Somogyi utca 4.",null,"6720 Szeged, Eötvös utca 6.",null,"6720 Szeged, Eötvös utca 6.",null,"6720 Szeged, Eötvös utca 6.",null,"6725 Szeged, Szikra utca 8."]
["Tervezett gyakoriság","Telefonos bejelentés alapján",null,"évi 10-12 alkalom, eseti bejelentés alapján",null,"havonta 2-szer",null,"havonta 1-szer",null,"Igény szerint",null,"kéthetente, változó napokon, előre jelzett időpontban",null,"Tanév közben kéthetente (Függöny: nyáron, évente egyszer, előre egyeztetett időpontban)",null,"Kéthetente viszik el",null,"Hetente",null,"havonta egyszer",null,"Havonta egyszer, kedden",null,"Hetente egyszer viszik el a szennyest",null,"Hetente egyszer viszik el a szennyest",null,"Hetente egyszer viszik el a szennyest",null,"Hetente egyszer viszik el a szennyest",null,"Hetente egyszer viszik el a szennyest",null,"Minden héten",null,"Abrosz: évente 3 alkalommal, rendezvényfüggő; sötétítőfüggöny: évente, kétévente",null,"Igény szerint. Vendégek nagyobb létszámmal a SZIN idejére várhatóak. Kéthetente, havonta",null,"Kéthetente",null,"Hetente: hétfő; kéthetente: szerda",null,"Február és május: heti 1-szer; Többi hónapban 2-3 hetente 1-szer, változó napokon",null,"Havonta egyszer",null,"Szorgalmi időszakban havi 1 szállítás, nyáron vendégforgalomtól függően hetente, kéthetente",null,"Hetente 1-szer",null,"Havonta 1-szer",null,"Szorgalmi időszakban havi 1-szer, nyáron vendégforgalomtól függően kéthetente, havonta",null,"Szorgalmi időszakban havi 1 szállítás, nyáron vendégforgalomtól függően kéthetente havonta",null,"Évente 2-szer",null,"Kéthetente",null,"Kéthetente",null,"Hetente",null,"Hetente, függönyt évi 3-szor",null,"Hetente, változó",null,"Hetente"]
["Tervezett elszállítás",{"$nulls":4},"kedd",null,"kedd",{"$nulls":5},"kedd",null,"hétfő",null,"hétfő",{"$nulls":15},"hétfő",{"$nulls":5},"Szerda",null,"Hétfő, Szerda",null,"Változó napokon",{"$nulls":5},"szerda"]
["Tervezett visszaszállítás",{"$nulls":4},"csütörtök",null,"csütörtök",{"$nulls":5},"csütörtök",null,"-",{"$nulls":17},"hétfő",{"$nulls":15},"péntek"]
["Textília megnevezése"]
["Törölköző vászon",{"$nulls":14},120,{"$nulls":25},350,{"$nulls":29},{"$f":"SUM(B7:BR7)","v":470}]
["Törölköző bértextília",{"$nulls":58},424,null,147,null,360,null,1440,null,1417,null,260,null,{"$f":"SUM(B8:BR8)","v":4048}]
["Törölköző frottír",50,{"$nulls":9},660,null,50,null,420,null,1200,null,180,null,300,null,480,null,700,null,800,null,480,null,1000,null,720,{"$nulls":7},2119,{"$nulls":29},9159]
["Lepedő kicsi fehér",null,null,500,{"$nulls":5},975,{"$nulls":33},559,{"$nulls":7},120,null,800,null,780,{"$nulls":15},3734]
["Lepedő nagy fehér",200,null,null,null,878,null,208,null,null,null,790,{"$nulls":25},856,null,1732,null,4113,null,307,null,1440,null,1500,null,1780,{"$nulls":21},13804]
["Párnahuzat nagy",200,null,450,null,602,null,207,null,710,null,810,{"$nulls":25},876,null,1563,null,4121,null,18,null,1440,null,1200,null,1780,null,120,null,630,null,600,{"$nulls":15},15327]
["Párnahuzat közepes",{"$nulls":4},150,{"$nulls":65},150]
["Párnahuzat kicsi",{"$nulls":4},217,null,42,{"$nulls":29},13,null,95,null,1649,{"$nulls":29},2016]
["Takaróhuzat nagy",200,null,null,null,812,null,216,null,null,null,700,{"$nulls":25},927,null,1672,null,4073,null,null,null,1440,null,1200,null,1780,{"$nulls":21},13020]
["Takaróhuzat kicsi",null,null,500,{"$nulls":5},932,{"$nulls":41},120,null,620,null,600,{"$nulls":15},2772]
["Abrosz damaszt 4-6 személyes",11,{"$nulls":11},100,{"$nulls":7},12,{"$nulls":11},50,null,10,null,6,null,null,null,4,null,121,{"$nulls":27},314]
["Abrosz színes/mintás",{"$nulls":12},100,{"$nulls":57},100]
["Nylon függöny (kg)",null,null,50,{"$nulls":5},105,null,null,null,40,{"$nulls":27},5,{"$nulls":15},3,{"$nulls":5},6,null,12,null,20,null,null,null,241]
["Sötétítő függöny (kg)",150,null,150,{"$nulls":5},108,null,null,null,100,{"$nulls":21},100,null,14,null,null,null,55,{"$nulls":15},11,{"$nulls":5},8,null,24,null,30,null,null,null,750]
["Spanyolfüggöny/fal",{"$nulls":12},3,{"$nulls":57},3]
["Párna (mosható)",null,null,500,{"$nulls":5},393,{"$nulls":27},140,null,189,null,396,{"$nulls":29},1618]
["Paplan (mosható)",null,null,500,{"$nulls":5},71,{"$nulls":27},140,null,83,{"$nulls":31},794]
["Konyharuha",{"$nulls":10},30,null,50,null,200,null,240,null,null,null,120,null,200,null,700,null,400,null,400,null,800,null,300,{"$nulls":37},3440]
["Konyharuha bértextília",{"$nulls":58},208,null,92,null,120,null,720,null,919,null,104,null,2163]
["Pléd (kg)",{"$nulls":10},2,{"$nulls":25},119,null,124,null,382,{"$nulls":29},627]
["Köpeny orvosi",{"$nulls":22},400,null,800,null,400,null,400,null,600,{"$nulls":11},165,{"$nulls":15},49,null,53,null,168,null,1000,null,65,null,null,null,4100]
["Köpeny orvosi bértextília",{"$nulls":68},104,null,104]
["Nővérruha",{"$nulls":58},42,null,11,null,48,null,500,null,24,null,null,null,625]
["Matracvédő",{"$nulls":38},7,{"$nulls":31},7]
["Szőnyegvédő",{"$nulls":38},20,{"$nulls":31},20]
["Pólyabetét",{"$nulls":42},7,{"$nulls":27},7]
["Ing",{"$nulls":42},1,{"$nulls":27},1]
["Pelenka",{"$nulls":58},47,{"$nulls":7},6,null,null,null,53]
["Tunika",{"$nulls":58},59,null,null,null,48,null,720,null,79,null,null,null,906]
["Orvosi ing",{"$nulls":62},170,null,288,null,4,null,null,null,462]
["Orvosi nadrág",{"$nulls":58},4,null,36,null,60,null,288,null,10,null,null,null,398]
["Nadrág fehér",{"$nulls":42},3,{"$nulls":27},3]
["P.P. szennyeszsák",{"$nulls":8},147,{"$nulls":5},24,{"$nulls":21},40,{"$nulls":21},3,null,null,null,24,null,48,{"$nulls":5},286]
["Terítő fehér 6 személyes",{"$nulls":66},2,null,null,null,2]
["Terítő bordó, 4 személyes",{"$nulls":66},2,null,null,null,2]
["Abrosz",{"$nulls":66},2,null,null,null,2]
["Műszertörlő",{"$nulls":66},402,null,null,null,402]
["Műtősruha",{"$nulls":66},15,null,null,null,15]
["Abrosz selyem",{"$nulls":56},1,{"$nulls":13},1]